bitfinex-derivatives/quotes_BTCF0:USTF0_20250320
["timestamp","ask_amount","ask_price","bid_price","bid_amount"]
[1742492373418,0.1961,84243.0,84242.0,0.44445211]
[1742492374233,0.1015,84243.0,84242.0,0.68445211]
[1742492374522,0.1015,84243.0,84242.0,0.68441211]
[1742492375928,0.1015,84243.0,84242.0,0.69325955]
[1742492377028,0.1015,84243.0,84242.0,0.45325955]
[1742492377228,0.1015,84243.0,84242.0,0.25895955]
[1742492378930,0.2202612,84243.0,84242.0,0.25895955]
[1742492379230,0.1015,84243.0,84242.0,0.25895955]
[1742492379432,0.2058,84243.0,84242.0,0.25895955]
[1742492379830,0.3245612,84243.0,84242.0,0.25895955]
[1742492380628,0.3245612,84243.0,84242.0,0.13923955]
[1742492380827,0.3245612,84243.0,84242.0,0.00884744]
[1742492381021,0.3245612,84243.0,84242.0,0.1187626]
[1742492382630,0.3245612,84243.0,84242.0,0.13063644]
[1742492383531,0.2058,84243.0,84242.0,0.13938768]
[1742492384133,0.3245612,84243.0,84242.0,0.13938768]
[1742492384535,0.2058,84243.0,84242.0,0.13938768]
[1742492386230,0.2058,84243.0,84242.0,0.33548768]
[1742492386832,0.2058,84243.0,84242.0,0.13938768]
[1742492388643,0.3245612,84243.0,84242.0,0.13938768]
[1742492388837,0.2058,84243.0,84242.0,0.13938768]
[1742492389341,0.2058,84243.0,84242.0,0.33778768]
[1742492392841,0.2058,84243.0,84242.0,0.13938768]
[1742492393936,0.2058,84243.0,84242.0,0.33388768]
[1742492395836,0.2058,84243.0,84242.0,0.13938768]
[1742492396932,0.2058,84243.0,84242.0,0.33058768]
[1742492397845,0.2058,84243.0,84242.0,0.13938768]
[1742492398328,0.1015,84243.0,84242.0,0.56058768]
[1742492400331,0.1015,84243.0,84242.0,0.33058768]
[1742492401929,0.1015,84243.0,84242.0,0.13938768]
[1742492402132,0.2202612,84243.0,84242.0,0.13938768]
[1742492402440,0.2202612,84243.0,84242.0,0.00875124]
[1742492402636,0.4492439,84243.0,84242.0,0.1187626]
[1742492402836,0.3744439,84243.0,84242.0,0.1187626]
[1742492403342,0.4744439,84243.0,84242.0,0.1187626]
[1742492403739,0.4363439,84243.0,84242.0,0.1187626]
[1742492404037,0.1963,84243.0,84242.0,0.12756183]
[1742492404440,0.1963,84243.0,84242.0,0.22286183]
[1742492404634,0.1963,84243.0,84242.0,0.32056183]
[1742492405440,0.3150612,84243.0,84242.0,0.22286183]
[1742492405641,0.3150612,84243.0,84242.0,0.12756183]
[1742492413642,0.3608,84256.0,84254.0,0.0593717]
[1742492413844,0.1781325,84251.0,84250.0,0.1187442]
[1742492414339,0.2035325,84251.0,84250.0,0.1187442]
[1742492414540,0.1781325,84251.0,84250.0,0.1187442]
[1742492415744,0.1793325,84251.0,84250.0,0.1187442]
[1742492415950,0.1781325,84251.0,84250.0,0.1187442]
[1742492416142,0.1793325,84251.0,84250.0,0.1187442]
[1742492416337,0.2781325,84251.0,84250.0,0.1187442]
[1742492416542,0.1781347,84247.0,84246.0,0.1187559]
[1742492418349,0.1781389,84245.0,84244.0,0.1187595]
[1742492418941,0.3794389,84245.0,84244.0,0.1187595]
[1742492419141,0.118764,84241.0,84240.0,0.27136527]
[1742492419949,0.320064,84241.0,84240.0,0.27136527]
[1742492421449,0.320064,84241.0,84240.0,0.0593824]
[1742492421949,0.118771,84236.0,84235.0,0.21198287]
[1742492422155,0.118771,84236.0,84221.0,0.42396575]
[1742492422156,0.1187837,84227.0,84224.0,0.1187868]
[1742492422453,0.3384237,84227.0,84221.0,0.42396575]
[1742492422638,0.1187908,84222.0,84221.0,0.42396575]
[1742492422841,0.0593985,84218.0,84214.0,0.0944]
[1742492423044,0.1188006,84215.0,84214.0,0.2725975]
[1742492424052,0.1188006,84215.0,84214.0,0.2765975]
[1742492424353,0.1188006,84215.0,84214.0,0.28872372]
[1742492424539,0.1188006,84215.0,84214.0,0.29967948]
[1742492424743,0.1436006,84215.0,84214.0,0.002]
[1742492424950,0.1942006,84215.0,84214.0,0.004]
[1742492425154,0.1188063,84211.0,84210.0,0.13082466]
[1742492425352,0.6992463,84211.0,84210.0,0.1188067]
[1742492425649,0.6492463,84211.0,84210.0,0.1188067]
[1742492426238,0.7944463,84211.0,84210.0,0.23056097]
[1742492426640,0.8444463,84211.0,84210.0,0.23056097]
[1742492426938,0.7944463,84211.0,84210.0,0.23356097]
[1742492427342,0.8444463,84211.0,84210.0,0.23356097]
[1742492427938,0.8444463,84211.0,84210.0,0.23756097]
[1742492428349,0.7944463,84211.0,84210.0,0.23756097]
[1742492429242,0.8444463,84211.0,84210.0,0.23756097]
[1742492431353,0.7944463,84211.0,84210.0,0.23756097]
[1742492432346,0.8444463,84211.0,84210.0,0.23756097]
[1742492432548,0.8192463,84211.0,84210.0,0.23756097]
[1742492433050,0.8944463,84211.0,84210.0,0.23756097]
[1742492433252,0.9444463,84211.0,84210.0,0.1069]
[1742492433554,0.1188359,84190.0,84189.0,0.0594181]
[1742492433752,0.4796359,84190.0,84189.0,0.0594181]
[1742492433947,0.7706359,84190.0,84189.0,0.0594181]
[1742492434553,0.7706359,84190.0,84189.0,0.07124995]
[1742492435356,0.7706359,84190.0,84189.0,0.01183185]
[1742492435550,0.1188402,84187.0,84186.0,0.10843802]
[1742492435749,0.1188402,84187.0,84186.0,0.22727962]
[1742492436358,0.1188402,84187.0,84186.0,0.23922773]
[1742492436652,0.1188402,84187.0,84186.0,0.24122773]
[1742492437048,0.1979,84187.0,84186.0,0.24122773]
[1742492437449,0.3167402,84187.0,84186.0,0.24122773]
[1742492437656,0.3167402,84187.0,84186.0,0.34172773]
[1742492439258,0.3167402,84187.0,84186.0,0.34472773]
[1742492442963,0.3608,84190.0,84189.0,0.1188373]
[1742492443359,0.1007,84197.0,84196.0,0.1188274]
[1742492443559,0.4593,84200.0,84197.0,0.118826]
[1742492443760,0.4593,84200.0,84197.0,0.313926]
[1742492445763,0.0942,84199.0,84197.0,0.313926]
[1742492446165,0.09307817,84198.0,84197.0,0.313926]
[1742492446958,0.09307817,84198.0,84197.0,0.316926]
[1742492447458,0.09307817,84198.0,84197.0,0.318926]
[1742492447771,0.09307817,84198.0,84197.0,0.317926]
[1742492448656,0.09307817,84198.0,84197.0,0.316926]
[1742492450464,0.09307817,84198.0,84197.0,0.315926]
[1742492450664,0.09307817,84198.0,84197.0,0.314926]
[1742492450859,0.09307817,84198.0,84197.0,0.316926]
[1742492451766,0.09307817,84198.0,84197.0,0.315926]
[1742492451961,0.09307817,84198.0,84197.0,0.316926]
[1742492454071,0.09307817,84198.0,84197.0,0.317926]
[1742492454566,0.21190277,84198.0,84197.0,0.121826]
[1742492454970,0.30830277,84198.0,84197.0,0.121826]
[1742492455369,0.18947817,84198.0,84197.0,0.121826]
[1742492455668,0.18947817,84198.0,84197.0,0.217826]
[1742492455877,0.30830277,84198.0,84197.0,0.311926]
[1742492456167,0.30830277,84198.0,84197.0,0.309926]
[1742492456475,0.30830277,84198.0,84197.0,0.311926]
[1742492456861,0.30830277,84198.0,84197.0,0.310926]
[1742492457172,0.30830277,84198.0,84197.0,0.308926]
[1742492457474,0.30830277,84198.0,84197.0,0.118826]
[1742492459069,0.30830277,84198.0,84188.0,0.0925]
[1742492459070,0.1188373,84189.0,84188.0,0.1782472]
[1742492459263,0.1188373,84189.0,84188.0,0.0594166]
[1742492459663,0.3164373,84189.0,84188.0,0.0594166]
[1742492459868,0.1188402,84187.0,84186.0,0.00893802]
[1742492460174,0.1188402,84187.0,84186.0,0.1188416]
[1742492460373,0.3140402,84187.0,84186.0,0.1188416]
[1742492460973,0.0594215,84185.0,84181.0,0.05960227]
[1742492461172,0.1188472,84182.0,84181.0,0.05960227]
[1742492461575,0.4037472,84182.0,84181.0,0.05960227]
[1742492461768,0.4037472,84182.0,84181.0,0.07166755]
[1742492462471,0.4037472,84182.0,84181.0,0.05960227]
[1742492462867,0.4037472,84182.0,84181.0,0.06859977]
[1742492463063,0.1782807,84179.0,84178.0,0.1188527]
[1742492463273,0.5390807,84179.0,84178.0,0.1188527]
[1742492463772,0.3608,84179.0,84178.0,0.12765221]
[1742492463981,0.3608,84179.0,84178.0,0.41535221]
[1742492464177,0.1914,84182.0,84181.0,0.1188486]
[1742492464478,0.1188302,84195.0,84193.0,0.1188317]
[1742492464679,0.1924,84195.0,84193.0,0.1188317]
[1742492464972,0.36097817,84198.0,84193.0,0.1188317]
[1742492464973,0.23606251,84194.0,84193.0,0.1188317]
[1742492465164,0.23606251,84194.0,84193.0,0.3060317]
[1742492465369,0.094,84194.0,84193.0,0.3060317]
[1742492465775,0.094,84194.0,84193.0,0.4065317]
[1742492465974,0.094,84194.0,84193.0,0.4213416]
[1742492466268,0.094,84194.0,84193.0,0.3287416]
[1742492466778,0.2128303,84194.0,84193.0,0.2282416]
[1742492467076,0.094,84194.0,84193.0,0.1356416]
[1742492467380,0.1856,84194.0,84193.0,0.3276416]
[1742492467681,0.1856,84194.0,84193.0,0.3286416]
[1742492468176,0.1856,84194.0,84193.0,0.4216416]
[1742492468482,0.3044303,84194.0,84193.0,0.1218317]
[1742492470473,0.3044303,84194.0,84193.0,0.13647454]
[1742492472189,0.1856,84194.0,84193.0,0.32807454]
[1742492473083,0.1856,84194.0,84193.0,0.34339436]
[1742492473284,0.14234044,84196.0,84195.0,0.1188289]
[1742492473477,0.14234044,84196.0,84195.0,0.13414872]
[1742492473678,0.14234044,84196.0,84195.0,0.32534872]
[1742492473884,0.14234044,84196.0,84195.0,0.33999156]
[1742492474075,0.14234044,84196.0,84195.0,0.36480684]
[1742492474387,0.14234044,84196.0,84195.0,0.33999156]
[1742492474583,0.14234044,84196.0,84195.0,0.34199156]
[1742492474785,0.33784044,84196.0,84195.0,0.34199156]
[1742492475788,0.0955,84196.0,84195.0,0.34199156]
[1742492476095,0.05387463,84212.0,84202.0,0.0594095]
[1742492476288,0.3608,84223.0,84202.0,0.0594095]
[1742492476289,0.18261562,84215.0,84214.0,0.1188021]
[1742492476483,0.3608,84223.0,84222.0,0.1187908]
[1742492476678,0.3608,84223.0,84222.0,0.26568519]
[1742492476873,0.24935752,84228.0,84226.0,0.1187851]
[1742492477178,0.24935752,84228.0,84227.0,0.13404971]
[1742492477375,0.24935752,84228.0,84227.0,0.37404971]
[1742492478283,0.2181,84252.0,84242.0,0.1187626]
[1742492478486,0.0946,84246.0,84242.0,0.1187626]
[1742492479084,0.0946,84246.0,84243.0,0.1187612]
[1742492479694,0.0946,84246.0,84243.0,0.3131612]
[1742492480380,0.004,84244.0,84243.0,0.3131612]
[1742492480784,0.1227597,84244.0,84243.0,0.1187612]
[1742492480986,0.1257597,84244.0,84243.0,0.1187612]
[1742492481581,0.2186597,84244.0,84243.0,0.1187612]
[1742492481982,0.1187612,84243.0,84242.0,0.24641595]
[1742492482192,0.101,84243.0,84242.0,0.24641595]
[1742492482383,0.2197612,84243.0,84242.0,0.24641595]
[1742492482587,0.2197612,84243.0,84242.0,0.00889135]
[1742492482788,0.1187626,84242.0,84241.0,0.118763]
[1742492483092,0.1187654,84241.0,84240.0,0.1187651]
[1742492483289,0.5805654,84241.0,84240.0,0.1187651]
[1742492483483,0.5805654,84241.0,84238.0,0.0593834]
[1742492483484,0.1781655,84236.0,84235.0,0.1781495]
[1742492484192,0.1781655,84236.0,84235.0,0.18713355]
[1742492484882,0.1187894,84223.0,84219.0,0.11897287]
[1742492485090,0.1187894,84223.0,84222.0,0.1187908]
[1742492485788,0.1187894,84223.0,84222.0,0.1276465]
[1742492485988,0.3143894,84223.0,84222.0,0.1276465]
[1742492486688,0.3143894,84223.0,84222.0,0.0088557]
[1742492486892,0.4737844,84223.0,84222.0,0.001]
[1742492487096,0.3737844,84223.0,84222.0,0.001]
[1742492487282,0.3737844,84223.0,84222.0,0.1197908]
[1742492487487,0.3737844,84223.0,84222.0,0.1187908]
[1742492487981,0.4737844,84223.0,84219.0,0.11897287]
[1742492488190,0.4795936,84220.0,84219.0,0.00017817]
[1742492488397,0.5991536,84220.0,84219.0,0.00017817]
[1742492488587,0.61229359,84220.0,84219.0,0.00017817]
[1742492488894,0.1188147,84205.0,84204.0,0.2376291]
[1742492489394,0.2183147,84205.0,84204.0,0.24969601]
[1742492490197,0.0995,84205.0,84204.0,0.24969601]
[1742492490694,0.2183147,84205.0,84204.0,0.25469601]
[1742492491895,0.0995,84205.0,84204.0,0.25469601]
[1742492492095,0.2004,84205.0,84204.0,0.25469601]
[1742492492296,0.3608,84210.0,84209.0,0.1188091]
[1742492492695,0.3608,84210.0,84209.0,0.3135091]
[1742492493190,0.4617,84210.0,84209.0,0.3135091]
[1742492493590,0.4617,84210.0,84209.0,0.3145091]
[1742492494491,0.5389803,84229.0,84228.0,0.1187823]
[1742492494801,0.4795809,84229.0,84228.0,0.1187823]
[1742492495193,0.5729809,84229.0,84228.0,0.2210823]
[1742492495399,0.4542,84229.0,84228.0,0.2210823]
[1742492495801,0.4542,84229.0,84228.0,0.23302977]
[1742492496099,0.5729809,84229.0,84228.0,0.13072977]
[1742492496500,0.6684809,84229.0,84228.0,0.13072977]
[1742492496696,0.6932809,84229.0,84228.0,0.01194747]
[1742492496995,0.6684809,84229.0,84228.0,0.1187823]
[1742492497202,0.1187837,84227.0,84226.0,0.01174463]
[1742492497405,0.1187865,84225.0,84224.0,0.1187871]
[1742492498091,0.3095865,84225.0,84224.0,0.13057088]
[1742492500003,0.3105865,84225.0,84224.0,0.13057088]
[1742492500594,0.3095865,84225.0,84224.0,0.13057088]
[1742492502002,0.1908,84225.0,84224.0,0.13057088]
[1742492502502,0.3095865,84225.0,84224.0,0.13057088]
[1742492504699,0.1187922,84221.0,84220.0,0.11897166]
[1742492504899,0.4795922,84221.0,84220.0,0.11897166]
[1742492505202,0.6979922,84221.0,84220.0,0.11897166]
[1742492505601,0.7655922,84221.0,84220.0,0.11897166]
[1742492506004,0.6979922,84221.0,84220.0,0.11897166]
[1742492506200,0.6985922,84221.0,84220.0,0.00017806]
[1742492506405,0.0594003,84215.0,84211.0,0.0594017]
[1742492506605,0.3608,84212.0,84211.0,0.0594017]
[1742492506999,0.3608,84212.0,84211.0,0.07152022]
[1742492507302,0.5991249,84212.0,84211.0,0.01211852]
[1742492507497,0.0594116,84199.0,84197.0,0.28026208]
[1742492507703,0.2335246,84198.0,84197.0,0.28026208]
[1742492507902,0.3265246,84198.0,84197.0,0.28026208]
[1742492508210,0.3017246,84198.0,84197.0,0.39908808]
[1742492508399,0.3029246,84198.0,84197.0,0.39908808]
[1742492508603,0.3017246,84198.0,84197.0,0.39908808]
[1742492508805,0.3608,84201.0,84200.0,0.1188218]
[1742492509300,0.0921,84211.0,84209.0,0.1188077]
[1742492509608,0.0944,84218.0,84211.0,0.1188063]
[1742492509807,0.1188005,84216.0,84211.0,0.1188063]
[1742492510103,0.3608,84219.0,84211.0,0.3046063]
[1742492510308,0.1187998,84216.0,84211.0,0.3046063]
[1742492510699,0.4796049,84212.0,84211.0,0.2132063]
[1742492511100,0.6695049,84212.0,84211.0,0.2132063]
[1742492511403,0.6695049,84212.0,84211.0,0.2162063]
[1742492511604,0.00132,84243.0,84219.0,0.118795]
[1742492511901,0.02889406,84229.0,84227.0,0.1187823]
[1742492512102,0.14767536,84229.0,84228.0,0.1187823]
[1742492512401,0.14767496,84229.0,84228.0,0.1187823]
[1742492512602,0.14767496,84229.0,84227.0,0.1187823]
[1742492512603,0.1187823,84228.0,84227.0,0.1187823]
[1742492512803,0.02889406,84229.0,84228.0,0.1187823]
[1742492513003,0.14967496,84229.0,84228.0,0.13092168]
[1742492514105,0.03089406,84229.0,84228.0,0.13092168]
[1742492515016,0.03289406,84229.0,84228.0,0.13092168]
[1742492516315,0.1187837,84227.0,84226.0,0.1187837]
[1742492516810,0.2383037,84227.0,84226.0,0.1187837]
[1742492517415,0.03089406,84229.0,84228.0,0.1187823]
[1742492517617,0.14941406,84229.0,84228.0,0.1187823]
[1742492517918,0.02989406,84229.0,84228.0,0.1187823]
[1742492518312,0.02889406,84229.0,84228.0,0.1187823]
[1742492518520,0.14767496,84229.0,84228.0,0.1187823]
[1742492519915,0.02889406,84229.0,84228.0,0.1187823]
[1742492520117,0.02989406,84229.0,84228.0,0.1187823]
[1742492520514,0.03089406,84229.0,84228.0,0.1187823]
[1742492520716,0.03089406,84229.0,84228.0,0.1876823]
[1742492521514,0.14967496,84229.0,84228.0,0.4795823]
[1742492524111,0.14967496,84229.0,84228.0,0.1187823]
[1742492524424,0.1187922,84221.0,84219.0,0.1187938]
[1742492524724,0.1188035,84213.0,84210.0,0.1188066]
[1742492525112,0.1188035,84213.0,84212.0,0.1188049]
[1742492527721,0.1188035,84213.0,84212.0,0.1218049]
[1742492527923,0.1188035,84213.0,84212.0,0.4826049]
[1742492527924,0.0904,84213.0,84212.0,0.4826049]
[1742492528111,0.0904,84213.0,84212.0,0.1238049]
[1742492528112,0.2092035,84213.0,84212.0,0.1238049]
[1742492528424,0.0904,84213.0,84212.0,0.4846049]
[1742492528822,0.0904,84213.0,84212.0,0.5313049]
[1742492529024,0.0904,84213.0,84212.0,0.6002049]
[1742492529327,0.0904,84213.0,84212.0,0.5972049]
[1742492529527,0.0904,84213.0,84212.0,0.5982049]
[1742492529726,0.0904,84213.0,84212.0,0.5962049]
[1742492530024,0.2092035,84213.0,84212.0,0.5962049]
[1742492530221,0.0904,84213.0,84212.0,0.5962049]
[1742492530527,0.0904,84213.0,84212.0,0.5972049]
[1742492531022,0.0904,84213.0,84212.0,0.5982049]
[1742492531327,0.0904,84213.0,84212.0,0.5992049]
[1742492531527,0.0904,84213.0,84212.0,0.5982049]
[1742492531933,0.3608,84242.0,84212.0,0.4794]
[1742492532220,0.0927,84248.0,84236.0,0.118771]
[1742492532411,0.0903,84241.0,84236.0,0.599091]
[1742492532613,0.0927,84240.0,84236.0,0.714691]
[1742492533820,0.00317659,84237.0,84236.0,0.714691]
[1742492534029,0.00317659,84237.0,84236.0,0.667991]
[1742492534418,0.00617659,84237.0,84236.0,0.667991]
[1742492535328,0.00617659,84237.0,84236.0,0.61103456]
[1742492535829,0.00617659,84237.0,84236.0,0.61982566]
[1742492536521,0.00617659,84237.0,84236.0,0.50030566]
[1742492538332,0.0927,84240.0,84239.0,0.1187668]
[1742492539532,0.0967,84240.0,84239.0,0.1187668]
[1742492539742,0.00017806,84248.0,84236.0,0.56043976]
[1742492539743,0.00017806,84248.0,84247.0,0.1187555]
[1742492540045,0.00017806,84248.0,84247.0,0.5220555]
[1742492540337,0.00017806,84248.0,84247.0,0.5867555]
[1742492541238,0.09457806,84248.0,84247.0,0.5867555]
[1742492541442,0.09457806,84248.0,84247.0,0.4795555]
[1742492543242,0.21333216,84248.0,84247.0,0.4795555]
[1742492543742,0.30563216,84248.0,84247.0,0.4795555]
[1742492544834,0.1781516,84240.0,84239.0,0.1187654]
[1742492546143,0.0593834,84240.0,84239.0,0.1187654]
[1742492546535,0.1471834,84240.0,84239.0,0.1187654]
[1742492548342,0.2419834,84240.0,84239.0,0.1187654]
[1742492550537,0.059387,84234.0,84223.0,0.21059903]
[1742492550738,0.1187809,84229.0,84228.0,0.37277629]
[1742492550941,0.1559809,84229.0,84228.0,0.13075859]
[1742492551146,0.4088809,84229.0,84228.0,0.13075859]
[1742492551834,0.3460809,84229.0,84228.0,0.13075859]
[1742492552035,0.4088809,84229.0,84228.0,0.13075859]
[1742492552244,0.3088809,84229.0,84228.0,0.13075859]
[1742492555850,0.3336809,84229.0,84228.0,0.01197629]
[1742492556535,0.3336809,84229.0,84228.0,0.13075859]
[1742492557239,0.3088809,84229.0,84228.0,0.13075859]
[1742492559544,0.059387,84234.0,84228.0,0.13075859]
[1742492559545,0.3608,84252.0,84232.0,0.0593883]
[1742492559744,0.0593627,84269.0,84232.0,0.0593883]
[1742492559745,0.3608,84266.0,84236.0,0.3608]
[1742492559942,0.088,84245.0,84244.0,0.1187597]
[1742492560137,0.088,84245.0,84244.0,0.6637397]
[1742492561249,0.088,84245.0,84244.0,0.4795597]
[1742492561555,0.088,84245.0,84244.0,0.5442597]
[1742492562042,0.088,84245.0,84244.0,0.5452597]
[1742492563947,0.2995583,84245.0,84244.0,0.5452597]
[1742492564147,0.2995583,84245.0,84244.0,0.4805597]
[1742492564353,0.1808,84245.0,84244.0,0.4805597]
[1742492564951,0.1808,84245.0,84244.0,0.5553597]
[1742492565652,0.1808,84245.0,84244.0,0.5813597]
[1742492566941,0.3608,84266.0,84244.0,0.4366]
[1742492567143,0.3111301,84265.0,84264.0,0.1187316]
[1742492567343,0.4027301,84265.0,84264.0,0.1187316]
[1742492567948,0.284,84265.0,84264.0,0.1187316]
[1742492568151,0.4027301,84265.0,84264.0,0.1187316]
[1742492568756,0.4027301,84265.0,84264.0,0.13036847]
[1742492573952,0.4275301,84265.0,84264.0,0.01163687]
[1742492574250,0.4275301,84265.0,84258.0,0.3608]
[1742492574251,0.1187386,84259.0,84258.0,0.11874]
[1742492574463,0.1781086,84259.0,84258.0,0.11874]
[1742492574759,0.3664086,84259.0,84258.0,0.11874]
[1742492575758,0.3664086,84259.0,84258.0,0.13038162]
[1742492576061,0.3664086,84259.0,84258.0,0.01164162]
[1742492576262,0.11874,84258.0,84257.0,0.1187403]
[1742492576655,0.30144,84258.0,84257.0,0.1187403]
[1742492577456,0.30144,84258.0,84257.0,0.13075176]
[1742492578359,0.1187414,84257.0,84256.0,0.00017806]
[1742492578757,0.3033414,84257.0,84256.0,0.00017806]
[1742492579254,0.3033414,84257.0,84256.0,0.11892086]
[1742492580965,0.3281414,84257.0,84256.0,0.00017806]
[1742492581172,0.1187456,84254.0,84253.0,0.3608]
[1742492581356,0.1187527,84249.0,84248.0,0.01197115]
[1742492581551,0.2375068,84249.0,84247.0,0.1187541]
[1742492581756,0.1187541,84248.0,84247.0,0.1187541]
[1742492581956,0.0593757,84250.0,84241.0,0.3608]
[1742492581957,0.1187626,84242.0,84241.0,0.4795618]
[1742492583361,0.2182626,84242.0,84241.0,0.4795618]
[1742492583661,0.2182626,84242.0,84241.0,0.49214644]
[1742492584268,0.3139626,84242.0,84241.0,0.49214644]
[1742492585469,0.3139626,84242.0,84241.0,0.49414644]
[1742492587166,0.3139626,84242.0,84241.0,0.3638]
[1742492587754,0.3139626,84242.0,84241.0,0.482564]
[1742492588169,0.3139626,84242.0,84241.0,0.496116]
[1742492588364,0.3139626,84242.0,84241.0,0.494116]
[1742492592265,0.1952,84242.0,84241.0,0.495116]
[1742492592568,0.3139626,84242.0,84241.0,0.495116]
[1742492593070,0.3139626,84242.0,84241.0,0.496116]
[1742492593262,0.3139626,84242.0,84241.0,0.497116]
[1742492593866,0.3139626,84242.0,84241.0,0.496116]
[1742492594459,0.3139626,84242.0,84241.0,0.497116]
[1742492594665,0.3139626,84242.0,84241.0,0.495116]
[1742492594972,0.3139626,84242.0,84241.0,0.496116]
[1742492595558,0.0957,84242.0,84241.0,0.496116]
[1742492595764,0.0966,84249.0,84248.0,0.1187541]
[1742492595963,0.059367,84263.0,84248.0,0.1187541]
[1742492595964,0.11944,84259.0,84249.0,0.1187527]
[1742492596267,0.0593709,84257.0,84256.0,0.1781106]
[1742492596467,0.0593709,84257.0,84256.0,0.5389106]
[1742492597370,0.1506709,84257.0,84256.0,0.5389106]
[1742492598173,0.1506709,84257.0,84256.0,0.1187428]
[1742492598870,0.1781177,84255.0,84254.0,0.1187452]
[1742492600872,0.1781242,84252.0,84251.0,0.0593746]
[1742492601075,0.1187527,84249.0,84248.0,0.4795521]
[1742492601369,0.1187527,84249.0,84239.0,0.4201831]
[1742492601370,0.1187626,84242.0,84239.0,0.3608]
[1742492601571,0.1781446,84242.0,84241.0,0.118764]
[1742492601778,0.4511446,84242.0,84241.0,0.118764]
[1742492602276,0.332382,84242.0,84241.0,0.118764]
[1742492602478,0.1846,84242.0,84241.0,0.118764]
[1742492602675,0.1846,84242.0,84241.0,0.29704011]
[1742492603368,0.0884,84248.0,84245.0,0.0593791]
[1742492603580,0.1858,84247.0,84246.0,0.7005353]
[1742492604077,0.0954,84247.0,84246.0,0.7005353]
[1742492604980,0.0904,84250.0,84249.0,0.1187527]
[1742492605480,0.0904,84250.0,84249.0,0.3312527]
[1742492609676,0.0904,84250.0,84249.0,0.2802527]
[1742492616293,0.178074,84276.0,84249.0,0.1615]
[1742492616492,0.1780825,84274.0,84273.0,0.1780755]
[1742492617897,0.64513127,84286.0,84273.0,0.059358]
[1742492618094,0.1780756,84278.0,84277.0,0.0593546]
[1742492618399,0.25216431,84278.0,84277.0,0.1780678]
[1742492618898,0.25216431,84278.0,84277.0,0.19255527]
[1742492620699,0.25216431,84278.0,84277.0,0.1780678]
[1742492623102,0.25216431,84278.0,84277.0,0.19308892]
[1742492623307,0.25216431,84278.0,84277.0,0.0593546]
[1742492623493,0.2374337,84278.0,84277.0,0.0593546]
[1742492623891,0.2692337,84278.0,84277.0,0.0593546]
[1742492624099,0.2374337,84278.0,84277.0,0.0593546]
[1742492624301,0.1780714,84277.0,84276.0,0.1187143]
[1742492624500,0.3616714,84277.0,84276.0,0.1187143]
[1742492624902,0.3616714,84277.0,84276.0,0.13379917]
[1742492625103,0.3616714,84277.0,84276.0,0.1187143]
[1742492625804,0.1780777,84274.0,84273.0,0.1187182]
[1742492631201,0.0593578,84276.0,84275.0,0.1187161]
[1742492631399,0.1509578,84276.0,84275.0,0.1187161]
[1742492635310,0.24958132,84286.0,84285.0,0.118702]
[1742492635498,0.3608,84306.0,84288.0,0.1186977]
[1742492635499,0.28305127,84289.0,84288.0,0.1186977]
[1742492635809,0.05373824,84305.0,84299.0,0.1186823]
[1742492635998,0.0593387,84303.0,84299.0,0.8402823]
[1742492636309,0.0593397,84301.0,84299.0,0.4794823]
[1742492636509,0.11964,84307.0,84299.0,0.59065679]
[1742492636696,0.3149809,84300.0,84299.0,0.68125679]
[1742492636902,0.1963,84300.0,84299.0,0.68125679]
[1742492637501,0.1963,84300.0,84299.0,0.59065679]
[1742492637705,0.3149809,84300.0,84299.0,0.47197449]
[1742492637905,0.3149809,84300.0,84299.0,0.59065679]
[1742492638606,0.3824909,84300.0,84299.0,0.59065679]
[1742492639808,0.26381,84300.0,84299.0,0.68515679]
[1742492640014,0.3824909,84300.0,84299.0,0.68515679]
[1742492641006,0.3824909,84300.0,84299.0,0.59065679]
[1742492641408,0.4773909,84300.0,84299.0,0.59065679]
[1742492642010,0.4773909,84300.0,84299.0,0.68095679]
[1742492644122,0.2911909,84300.0,84299.0,0.68095679]
[1742492644706,0.3885909,84300.0,84299.0,0.68095679]
[1742492645316,0.17251,84300.0,84299.0,0.68095679]
[1742492646416,0.0593286,84317.0,84316.0,0.1779839]
[1742492646620,0.1779855,84317.0,84316.0,0.1779839]
[1742492647211,0.1779855,84317.0,84316.0,0.1924778]
[1742492647413,0.1779855,84317.0,84316.0,0.2014837]
[1742492647614,0.0593286,84317.0,84316.0,0.2014837]
[1742492647814,0.2757826,84319.0,84318.0,0.1186555]
[1742492648520,0.2757826,84319.0,84318.0,0.2074555]
[1742492648711,0.2757826,84319.0,84318.0,0.1186555]
[1742492649622,0.1571271,84319.0,84318.0,0.2116555]
[1742492649920,0.1571271,84319.0,84318.0,0.3083555]
[1742492650517,0.0593271,84319.0,84318.0,0.3083555]
[1742492650713,0.0593257,84321.0,84320.0,0.1186527]
[1742492650915,0.2713488,84336.0,84335.0,0.1186316]
[1742492651225,0.1527151,84336.0,84335.0,0.1186316]
[1742492651417,0.2453151,84336.0,84335.0,0.1186316]
[1742492651819,0.2453151,84336.0,84335.0,0.13262139]
[1742492652019,0.3661551,84336.0,84335.0,0.13262139]
[1742492652224,0.1565144,84337.0,84335.0,0.13262139]
[1742492652225,0.0593144,84337.0,84335.0,0.19193709]
[1742492652411,0.1186288,84337.0,84336.0,0.3608]
[1742492652617,0.1186362,84333.0,84332.0,0.1186303]
[1742492652921,0.1186414,84328.0,84323.0,0.0593237]
[1742492653123,0.1186414,84328.0,84321.0,0.0945]
[1742492653320,0.1186414,84328.0,84327.0,0.11882085]
[1742492653620,0.1186414,84328.0,84327.0,0.00017795]
[1742492654021,0.2394373,84331.0,84327.0,0.05949865]
[1742492654323,0.1208,84331.0,84330.0,0.1186386]
[1742492654527,0.1186331,84334.0,84333.0,0.1186344]
[1742492655910,0.0938,84341.0,84339.0,0.1186246]
[1742492656115,0.3332246,84341.0,84340.0,0.1186246]
[1742492656324,0.2124246,84341.0,84340.0,0.1186246]
[1742492656625,0.2124246,84341.0,84340.0,0.13280521]
[1742492657323,0.2799346,84341.0,84340.0,0.13280521]
[1742492658731,0.2799346,84341.0,84340.0,0.1186246]
[1742492659416,0.1861346,84341.0,84340.0,0.1329773]
[1742492659614,0.1861346,84341.0,84340.0,0.2275773]
[1742492659819,0.1861346,84341.0,84340.0,0.1186246]
[1742492660620,0.1861346,84341.0,84340.0,0.3022246]
[1742492661022,0.19571,84341.0,84327.0,0.00017795]
[1742492661327,0.1186414,84328.0,84327.0,0.00017795]
[1742492661521,0.2392414,84328.0,84327.0,0.11882085]
[1742492661721,0.2640414,84328.0,84327.0,0.11882085]
[1742492662125,0.2392414,84328.0,84327.0,0.11882085]
[1742492662426,0.1779591,84330.0,84329.0,0.11864]
[1742492662632,0.0593173,84333.0,84332.0,0.1186358]
[1742492663130,0.0593173,84333.0,84332.0,0.6546358]
[1742492663526,0.0593155,84336.0,84332.0,0.6546358]